[Event "2nd Late Dr Abul K C Chess-ch B 2022"]
[Site "Dhaka"]
[Date "2022.07.07"]
[Round "8.1"]
[White "Tutul, Dhar"]
[Black "Ahmed, Feroz"]
[Result "1/2-1/2"]
[ECO "B28"]
[WhiteElo "1945"]
[BlackElo "1976"]
[Annotator "TA"]
[PlyCount "91"]
[EventDate "2022.07.03"]
[EventCountry "BAN"]
[SourceTitle "playchess.com"]
[Source "ChessBase"]
[SourceQuality "1"]
[TimeControl "5400+30"]

{[%evp 9,91,10,61,54,51,28,37,16,21,8,12,-2,0,-9,8,0,42,51,43,37,46,21,90,90,95,92,98,93,87,83,101,55,201,187,283,287,277,0,0,-30,0,0,0,0,0,-192,-190,-192,-194,-267,-246,-254,-246,-403,-339,-326,-154,-323,-318,-605,-553,-539,-444,-434,-429,-414,-325,-306,0,0,0,0,0,0,0,0,0,0,0,0,0,0,0,0]} 1. e4 {[%emt 0:00:47]} c5 {[%emt 0:02:18]} 2. Nf3 {[%emt 0:00:06]} Nc6 {[%emt 0:00:05]} 3. d4 {[%emt 0:00:04]} cxd4 {[%emt 0:00:18]} 4. Nxd4 {[%emt 0:00:03]} e6 {[%emt 0:00:06]} 5. c4 {[%emt 0:01:55]} a6 {[%emt 0:07:37]} (5... Nf6 $11) 6. Nxc6 {[%emt 0:01:56] B28: Sicilian: 2 Nf3 a6 (O'Kelly Variation).} bxc6 {[%emt 0:00:12]} 7. Be3 {[%emt 0:00:32]} Rb8 {[%emt 0:04:41] [#]} 8. Qc2 $146 {[%emt 0:00:38] White is slightly better.} ({Predecessor:} 8. Bd4 Bb4+ 9. Nc3 Nf6 10. Bd3 c5 11. Be3 d5 12. exd5 exd5 13. cxd5 Nxd5 14. Bd2 Nxc3 15. Bxc3 Bxc3+ 16. bxc3 {0-1 (52) Fontoura,R (1999)-Barbosa,E (2352) Nova Resende 2010}) 8... Nf6 {[%emt 0:01:42]} 9. Be2 {[%emt 0:00:30]} d5 {[%emt 0:03:36]} 10. exd5 {[%emt 0:08:07]} cxd5 {[%emt 0:06:51]} 11. O-O {[%emt 0:00:31]} Be7 {[%emt 0:08:59]} 12. Bf4 $36 {[%emt 0:09:48][%mdl 2048] Black is under pressure.} Ra8 {[%emt 0:04:45]} (12... Bd6 13. Bg3 Bxg3 14. hxg3 Qb6) (12... Bd6 $5 {[%cal Rd6f4]} 13. Bg3 Qb6 $11) 13. Bf3 {[%emt 0:02:28]} O-O {[%emt 0:01:08]} 14. Nc3 {[%emt 0:00:56]} Bb7 {[%emt 0:01:44]} 15. Rad1 {[%emt 0:01:05]} (15. Qb3 $5 {[%cal Rb3b7]} Bd6 16. Qxb7 (16. Bxd6 Qxd6 17. Rfd1 Rab8 $11) 16... Bxf4 17. cxd5 $14) 15... Rc8 {[%emt 0:09:16] [#]} (15... Bd6 16. Bxd6 Qxd6) (15... Bd6 $11 16. Bxd6 Qxd6) 16. Qb3 $1 $16 {[%emt 0:01:49][%csl LRb7,LRd5] White is more active.} Qd7 {[%emt 0:12:06]} 17. cxd5 {[%emt 0:00:57]} exd5 {[%emt 0:00:32]} 18. Nxd5 {[%emt 0:07:21]} Bxd5 {[%emt 0:00:11]} 19. Bxd5 {[%emt 0:00:03]} Qf5 {[%emt 0:00:30]} 20. Bg3 {[%emt 1:00:54]} (20. Qf3 $16) 20... h5 {[%emt 0:06:03]} (20... Nxd5 $14 21. Rxd5 (21. Qxd5 Qxd5 22. Rxd5 Rc2 $14) 21... Qc2) 21. Bb7 $18 {[%emt 0:01:55][%csl LRa6,LRc8] This bishop pair is nice.} Rb8 {[%emt 0:00:58]} (21... Rcd8 $142 22. Rxd8 (22. Bxa6 Rxd1 23. Qxd1 Qe6 $16) 22... Rxd8 23. Bxa6 Ne4) 22. Bxb8 {[%emt 0:00:32]} Rxb8 {[%emt 0:00:01]} 23. Be4 $2 {[%emt 0:07:36]} Qe5 $11 {[%emt 0:03:22]} 24. Qc4 {[%emt 0:13:24]} Qxe4 {[%emt 0:01:36]} 25. Qxe4 {[%emt 0:02:23]} Nxe4 {[%emt 0:00:03]} 26. Rfe1 {[%emt 0:00:32]} f5 {[%emt 0:01:16]} 27. Rd5 $2 {[%emt 0:00:01]} (27. f3 $11 {and White stays safe.} Bb4 28. Re2 (28. fxe4 Bxe1 29. Rxe1 Rxb2 $15)) 27... Rxb2 $19 {[%emt 0:08:58] And now ...Bc5 would win.} 28. Rxf5 {[%emt 0:01:31] [#]} Bc5 $1 {[%emt 0:15:36][%cal Rc5f2]} 29. Kf1 {[%emt 0:05:43]} (29. Rd1 {was worth a try.}) 29... g6 {[%emt 0:00:55]} ({Weaker is} 29... Rxf2+ 30. Rxf2 Nxf2 31. Re5 $14) 30. Rf4 {[%emt 0:04:27]} Nxf2 {[%emt 0:00:23]} 31. Re8+ $2 {[%emt 0:04:07]} (31. Re6 {was forced.} Ng4 32. Ke1) 31... Kg7 {[%emt 0:00:25]} 32. Rc8 {[%emt 0:23:28]} Be3 {[%emt 0:03:53]} (32... Bb6 $19 {is more deadly.} 33. h3 Nd1) 33. Rff8 $2 {[%emt 0:22:31]} (33. Rfc4 $17 {keeps fighting.}) 33... Ng4 {[%emt 0:00:58]} ({Wrong is} 33... Rxa2 $2 34. Rg8+ Kh6 35. Rc6 $19) 34. h4 $2 {[%emt 0:05:45]} (34. h3 Nh2+ 35. Ke1) 34... Rxa2 {[%emt 0:03:24]} 35. Rg8+ {[%emt 0:01:17]} Kf7 {[%emt 0:00:33] ( -> ...Rf2+)} 36. Rcf8+ {[%emt 0:00:36]} Ke7 {[%emt 0:00:08]} 37. Re8+ {[%emt 0:00:15]} Kd7 {[%emt 0:00:54] aiming for ...Bf2.} 38. Rd8+ {[%emt 0:00:22]} Ke7 $2 {[%emt 0:04:08]} (38... Kc6 $19 39. Rxg6+ Kc5) 39. Rde8+ $11 {[%emt 0:00:08] The position is equal.} Kf6 {[%emt 0:00:43]} 40. Rgf8+ $1 {[%emt 0:00:10]} Kg7 {[%emt 0:00:16]} 41. Rg8+ {[%emt 0:00:01]} Kf7 {[%emt 0:00:01]} (41... Kh6 $5 42. Rh8+ Kg7 43. Rhg8+ Kf7 44. Rgf8+ Kg7 45. Rg8+ $11) 42. Rgf8+ {[%emt 0:00:19]} Kg7 {[%emt 0:00:04]} 43. Rg8+ {[%emt 0:09:57]} Kf6 {[%emt 0:00:13]} (43... Kh6 $5 44. Rh8+ Kg7 45. Rhg8+ $11) 44. Rgf8+ $1 {[%emt 0:00:00]} Kg7 {[%emt 0:06:16]} 45. Rg8+ {[%emt 0:00:00]} Kh7 {[%emt 0:00:00]} (45... Kh6 $5 46. Rh8+ Kg7 47. Rhg8+ $11) 46. Rh8+ {[%emt 0:01:30] Never resign too early!  Weighted Error Value: White=0.38/Black=0.36} 1/2-1/2

[Event "2nd Late Dr Abul K C Chess-ch B 2022"]
[Site "Dhaka"]
[Date "2022.07.07"]
[Round "8.2"]
[White "Abdul, Momin"]
[Black "Sajidul, Haque"]
[Result "1-0"]
[ECO "B15"]
[WhiteElo "1915"]
[BlackElo "1875"]
[Annotator "TA"]
[PlyCount "103"]
[EventDate "2022.07.03"]
[EventCountry "BAN"]
[SourceTitle "playchess.com"]
[Source "ChessBase"]
[SourceQuality "1"]
[TimeControl "5400+30"]

{[%evp 9,103,13,50,0,11,0,20,-30,3,0,-5,-13,5,11,50,58,42,38,191,146,140,112,105,104,96,92,97,102,93,52,79,0,-2,-4,-2,0,0,0,21,16,48,44,83,52,56,27,33,27,31,28,41,0,45,19,66,20,69,68,69,73,67,71,104,84,104,104,104,87,97,93,102,85,266,279,260,260,260,255,259,247,253,252,248,234,472,462,578,585,522,452,497,434,689,576,731,642]} 1. e4 {[%emt 0:16:07]} c6 {[%emt 0:00:01]} 2. d4 {[%emt 0:00:05]} d5 {[%emt 0:00:05]} 3. Nc3 {[%emt 0:00:03]} dxe4 {[%emt 0:00:09]} 4. Nxe4 {[%emt 0:00:02]} Nf6 {[%emt 0:00:07]} 5. Ng3 {[%emt 0:00:35]} Bg4 {[%emt 1:32:38]} 6. f3 {[%emt 0:00:23] B15: Caro-Kann: 3 Nc3: 3...g6 and 3...dxe4 4 Nxe4 Nf6 5 Nxf6+ exf6.} Bd7 {[%emt 0:00:58]} 7. Bc4 {[%emt 0:00:58]} e6 {[%emt 0:00:18] [#]} 8. f4 $146 {[%emt 0:00:39]} (8. N1e2 $142) ({Predecessor:} 8. N1e2 Nd5 9. Ne4 Bb4+ 10. c3 Be7 11. Qb3 Bc8 12. O-O O-O 13. a4 Nd7 14. Nf4 {0-1 (74) Wehmeier,S (1771)-Freitag,M (1662) Germany 2009}) 8... Bd6 {[%emt 0:01:00]} 9. Nf3 {[%emt 0:00:11]} c5 {[%emt 0:00:51]} 10. O-O {[%emt 0:03:24]} b5 {[%emt 0:03:19]} 11. Bd3 {[%emt 1:13:33]} Qb6 {[%emt 0:05:20]} (11... cxd4 12. Nxd4 Bc5) 12. dxc5 {[%emt 0:00:21]} Bxc5+ {[%emt 0:01:06]} 13. Kh1 {[%emt 0:00:03]} Ng4 $2 {[%emt 0:04:32]} (13... O-O) (13... O-O $14) 14. Ne4 {[%emt 0:00:42]} (14. f5) 14... Nc6 {[%emt 0:02:00]} 15. Qe2 {[%emt 1:13:21]} (15. Ne5 Ncxe5 16. fxe5) 15... Nb4 {[%emt 0:02:18]} 16. Ne5 {[%emt 0:01:38]} Nxe5 {[%emt 0:06:23]} 17. fxe5 {[%emt 0:00:13][%cal Oc1e3]} Nxd3 {[%emt 0:03:30]} 18. cxd3 {[%emt 1:09:37][%cal Bc2d3,Bd3d4][%mdl 32]} (18. Qxd3 Bc6) (18. Qxd3 Bc6 $11) 18... Bc6 {[%emt 0:04:45]} 19. d4 {[%emt 0:12:21]} (19. Qg4) 19... Be7 {[%emt 0:01:08] [#]} 20. Qg4 {[%emt 0:00:13] 0x0.00200d029d49dp-1022s more active pieces. The black rooks are badly placed.} (20. Bg5) (20. Bg5 $1 $16 {[%cal Rg5e7]}) 20... h5 $11 {[%emt 1:01:55]} 21. Qf4 $132 {[%emt 0:00:59][%mdl 2048] White has counterplay} (21. Qxg7 O-O-O 22. Nf6 (22. Qxf7 Rhf8) 22... Qxd4 23. Qxf7 Qf2) (21. Qxg7 $2 O-O-O 22. Nf6 (22. Qxf7 $2 Rhf8 $19) 22... Qxd4 $19) 21... O-O-O {[%emt 0:02:30]} 22. Nd6+ {[%emt 0:24:41]} ({But not} 22. Qxf7 $2 Rhf8 23. Be3 (23. Qxe6+ $2 Bd7 $19) 23... Rxf7 $19) 22... Bxd6 {[%emt 0:00:12]} 23. exd6 {[%emt 0:00:01]} Qb7 {[%emt 0:00:59]} 24. Rf2 {[%emt 0:00:45] Threatening Be3.} h4 {[%emt 0:04:43]} 25. h3 {[%emt 0:33:48]} ({Don't play} 25. Qxf7 Rxd6 26. Bg5 Qd7 $11) 25... Qd7 {[%emt 0:05:26]} 26. Be3 {[%emt 0:01:48] Strongly threatening d5.} Qxd6 {[%emt 0:08:59]} 27. Qxd6 {[%emt 0:04:40]} Rxd6 {[%emt 0:29:16]} 28. Rxf7 {[%emt 0:00:16] And now Rc1 would win.} Rd7 {[%emt 0:00:49]} 29. Raf1 {[%emt 0:00:04]} Rhd8 {[%emt 0:02:37]} 30. b4 {[%emt 0:00:37]} a6 {[%emt 0:04:50]} 31. Kg1 {[%emt 0:24:56]} g6 {[%emt 0:04:29]} (31... Rxf7 $11 32. Rxf7 Rd7 33. Rf8+ Kb7) 32. a3 {[%emt 0:01:20]} (32. R7f6 $14) 32... Rg8 {[%emt 0:18:52]} (32... Rxf7 $11 {might be stronger.} 33. Rxf7 Rd6) 33. Rf8+ $14 {[%emt 0:01:53]} Rxf8 {[%emt 0:02:38]} 34. Rxf8+ {[%emt 0:00:01][%mdl 4096] Endgame KRB-KRB} Kb7 {[%emt 0:02:48]} 35. Rf6 {[%emt 0:00:50][%csl LRe6,LRg6]} Rg7 {[%emt 0:01:01] White stays focused until the end.} 36. Bg5 {[%emt 0:01:02]} Bd5 {[%emt 0:03:01]} 37. Bxh4 {[%emt 0:00:12]} Kc6 {[%emt 0:09:00]} 38. Rf8 {[%emt 0:00:23]} Be4 {[%emt 0:01:40]} 39. Bf6 {[%emt 0:00:53]} Rh7 {[%emt 0:02:03]} 40. h4 {[%emt 0:00:32]} Rh5 $2 {[%emt 0:01:17] [#]} (40... Ra7 $16) 41. g4 $1 $18 {[%emt 0:20:15]} Rh7 {[%emt 0:00:02]} 42. Kf2 {[%emt 0:00:06] Prevents Bf3.} Ra7 {[%emt 0:02:41]} 43. Ke3 {[%emt 0:00:02]} Bb1 {[%emt 0:00:23]} 44. Kf4 {[%emt 0:00:57]} a5 {[%emt 0:00:50]} 45. Ke5 {[%emt 0:00:31] Rc8+ is the strong threat.} axb4 {[%emt 0:00:10]} 46. axb4 {[%emt 0:00:03]} Ra2 $2 {[%emt 0:03:53]} (46... Ra3 47. Kxe6 Re3+ 48. Be5 Ba2+ 49. Ke7 Kd5 50. Rd8+ Kc4) 47. Kxe6 {[%emt 0:00:37] aiming for d5+. White is clearly winning.} Re2+ {[%emt 0:02:35]} 48. Be5 {[%emt 0:00:10] Hoping for d5+.} Ba2+ {[%emt 0:00:39]} 49. Ke7 {[%emt 0:02:01]} Kd5 {[%emt 0:00:15]} 50. Rc8 {[%emt 0:01:45] Black must now prevent h5.} Bc4 {[%emt 0:01:06]} (50... Rg2 $142 51. h5 gxh5 52. gxh5 Rg1 53. Rc5+ Ke4) 51. Kf6 {[%emt 0:00:18]} Bd3 {[%emt 0:00:18]} 52. Rc5+ {[%emt 0:00:01] Weighted Error Value: White=0.18 (very precise) /Black=0.33} 1-0

[Event "2nd Late Dr Abul K C Chess-ch B 2022"]
[Site "Dhaka"]
[Date "2022.07.07"]
[Round "8.3"]
[White "Hasan, Sk. Rashedul"]
[Black "Sakline Mostafa, Sajid"]
[Result "0-1"]
[ECO "B10"]
[WhiteElo "1856"]
[BlackElo "1979"]
[Annotator "TA"]
[PlyCount "134"]
[EventDate "2022.07.03"]
[EventCountry "BAN"]
[SourceTitle "playchess.com"]
[Source "ChessBase"]
[SourceQuality "1"]
[TimeControl "5400+30"]

{[%evp 9,134,38,50,44,50,31,33,25,27,18,32,27,27,26,41,37,36,28,35,7,37,22,53,37,59,49,77,69,81,45,87,45,79,50,67,43,77,83,125,114,110,116,183,106,131,97,125,23,18,27,20,22,18,0,0,-34,-41,-39,-31,-42,-44,-42,-3,-10,-5,-36,-28,-52,0,-86,0,-118,-89,-130,0,0,0,0,5,5,5,5,5,8,9,9,9,9,503,484,533,0,1552,1333,29951,10766,9147,10341,1340,31,31,0,0,0,0,0,0,-29970,-29959,-29948,-6180,-29980,-29981,-29981,-29982,-29983,-29984,-29984,-29985,-29986,-29987,-29987,-29987,-29992,-29993,-29993,-29994]} 1. e4 {[%emt 0:35:15]} c6 {[%emt 0:00:30]} 2. d3 {[%emt 0:00:45]} d5 {[%emt 0:00:07]} 3. Nd2 {[%emt 0:00:03]} g6 {[%emt 0:00:19]} 4. Ngf3 {[%emt 0:00:13]} Bg4 {[%emt 0:00:29]} 5. Be2 {[%emt 0:02:50]} Bg7 {[%emt 0:00:17]} 6. c3 {[%emt 0:00:15] B10: Caro-Kann: 2 d3 and 2 c4.} e6 {[%emt 0:00:19]} 7. Qc2 {[%emt 0:00:31]} Ne7 {[%emt 0:00:50]} 8. O-O {[%emt 0:00:30] White is slightly better.} O-O {[%emt 0:00:07] [#]} 9. h3 $146 {[%emt 0:00:12]} ({Predecessor:} 9. Rd1 Nd7 10. Nf1 h6 11. Ne3 Bxf3 12. Bxf3 Kh7 13. g3 b5 14. Qe2 Qb6 15. Nc2 {1-0 (51) Jimenez,B-Couche,J Val Thorens 1995}) 9... Bxf3 {[%emt 0:00:12]} 10. Nxf3 {[%emt 0:00:03]} Qc7 {[%emt 0:00:42]} 11. a4 {[%emt 0:00:57]} a5 {[%emt 0:00:24]} 12. Re1 {[%emt 0:00:15]} Nd7 {[%emt 0:01:26]} 13. Bf1 {[%emt 0:00:13]} e5 {[%emt 0:02:19]} 14. Bg5 {[%emt 0:00:43]} Rae8 {[%emt 0:02:04]} 15. b4 {[%emt 0:01:14]} h6 {[%emt 0:09:25]} 16. Be3 {[%emt 0:03:20]} f5 {[%emt 0:03:58]} 17. Rab1 {[%emt 0:01:13]} Ra8 {[%emt 0:25:48]} 18. Qb3 {[%emt 0:03:01]} Rfb8 {[%emt 0:01:42]} 19. b5 {[%emt 0:05:26]} Qd6 {[%emt 0:03:58]} 20. exd5 {[%emt 0:03:36]} cxd5 {[%emt 0:03:41]} 21. c4 {[%emt 0:03:42]} (21. Bc1 $5 {[%cal Rc1a3]}) 21... Kh7 {[%emt 0:05:57]} 22. Bc1 {[%emt 0:06:02]} Nc5 {[%emt 0:03:48]} 23. Ba3 {[%emt 0:04:00]} Rd8 {[%emt 0:15:14]} 24. Bxc5 {[%emt 0:00:39]} Qxc5 {[%emt 0:00:19]} 25. Nxe5 {[%emt 0:00:05][%cal Od3d4]} Ng8 {[%emt 0:02:52]} (25... Rac8 $16 {was called for.}) 26. Nf3 {[%emt 0:05:01]} (26. d4 $18 dxc4 27. dxc5 cxb3 28. c6 (28. Rxb3 Rd5 $18) 28... Bxe5 29. Rxe5 (29. cxb7 Rab8 $18)) 26... Rac8 {[%emt 0:01:05]} 27. Re6 {[%emt 0:01:06]} Nf6 {[%emt 0:08:50]} 28. d4 {[%emt 0:07:19]} (28. Rc1 $1 $16) 28... dxc4 $11 {[%emt 0:02:38]} 29. dxc5 {[%emt 0:00:02]} cxb3 {[%emt 0:00:00]} 30. c6 {[%emt 0:00:02]} bxc6 {[%emt 0:00:29]} 31. bxc6 {[%emt 0:00:34]} Ne4 {[%emt 0:00:23]} 32. Bb5 {[%emt 0:01:19]} (32. Rxb3 $2 Nc5 33. Rbe3 Nxe6 34. Rxe6 Rd1 $19) (32. Re7 $5 {[%cal Rb1b3]} Rxc6 33. Rxb3 $11) 32... Rc7 {[%emt 0:00:56] Inhibits Re7.} 33. Rxb3 {[%emt 0:02:32]} Nc5 {[%emt 0:01:36]} 34. Rbe3 {[%emt 0:00:02]} Nxe6 {[%emt 0:04:46]} 35. Rxe6 {[%emt 0:00:02]} Rf8 {[%emt 0:00:00]} 36. Nd2 {[%emt 0:01:05]} Rf6 {[%emt 0:00:00]} 37. Rxf6 {[%emt 0:00:04]} Bxf6 {[%emt 0:00:00][%mdl 4096] Endgame KRB-KBN} 38. Nb3 {[%emt 0:00:01]} Ra7 {[%emt 0:00:00]} (38... Bc3 $15) 39. Nc5 {[%emt 0:00:34]} (39. Nxa5 $1 $11 Re7 40. g3) 39... Bd8 {[%emt 0:00:39]} (39... Re7 $1 $17 40. Kf1 (40. Nd7 Re1+ 41. Kh2 Bd4 $17) 40... Bc3) 40. Nb7 {[%emt 0:00:10]} (40. Ne6 $11 {keeps the balance.} Bb6 41. h4) 40... Bc7 {[%emt 0:00:10]} 41. Kf1 {[%emt 0:00:47]} Ra8 {[%emt 0:00:25]} ({Black should try} 41... Kg7 $17 42. Ke2 Kf6) 42. Nc5 $1 {[%emt 0:00:07]} Re8 {[%emt 0:00:10]} 43. Na6 {[%emt 0:01:09]} Re7 {[%emt 0:00:28]} 44. Nxc7 {[%emt 0:00:23]} Rxc7 {[%emt 0:00:00] KR-KB} 45. Ke2 {[%emt 0:00:01]} Kg7 {[%emt 0:00:02] Threatens to win with ...Kf6.} 46. Kd3 {[%emt 0:00:19]} Kf6 {[%emt 0:00:05] And now ...Ke5 would win.} 47. Kd4 {[%emt 0:00:25]} Ke6 {[%emt 0:00:47] ...Kd6 is the strong threat.} 48. Kc5 {[%emt 0:16:23]} Ke5 $2 {[%emt 0:00:20][%mdl 8192]} (48... g5 $1 $11 {and Black has nothing to worry.}) 49. Bc4 $1 $18 {[%emt 0:00:00]} g5 {[%emt 0:01:40]} 50. g3 $2 {[%emt 0:00:00]} ({Only move:} 50. g4 $1 $18 {[%cal Rg4f5]}) 50... Re7 $2 {[%emt 0:00:56][%mdl 8192]} (50... g4 $11) 51. f4+ $1 {[%emt 0:00:00]} gxf4 {[%emt 0:01:24]} 52. gxf4+ {[%emt 0:00:00]} Kxf4 {[%emt 0:00:47]} 53. Kd6 {[%emt 0:00:00]} Re8 {[%emt 0:00:36] [#]} 54. c7 $2 {[%emt 0:00:00]} ({White must play} 54. Be6 $1 $18 {Threatening mate with c7.} Kg5 55. c7) 54... Kg3 $1 $14 {[%emt 0:00:10]} 55. Be6 {[%emt 0:00:00]} f4 {[%emt 0:00:25]} 56. c8=Q {[%emt 0:00:00]} Rxc8 {[%emt 0:00:01]} 57. Bxc8 $11 {[%emt 0:00:00] KB-K3P} f3 {[%emt 0:00:01]} 58. Kc5 $2 {[%emt 0:00:00][%mdl 8192] [#]} (58. Ba6 $11 Kxh3 59. Ke5) 58... f2 $1 {[%emt 0:00:05]} 59. Ba6 {[%emt 0:00:00]} Kxh3 {[%emt 0:00:02] ( -> ...h5)} 60. Kb6 {[%emt 0:00:00]} Kg3 {[%emt 0:00:31] Black mates.} 61. Kxa5 {[%emt 0:00:00] KB-KPP} h5 {[%emt 0:00:01]} 62. Bf1 {[%emt 0:00:00]} h4 {[%emt 0:00:01]} 63. Kb6 {[%emt 0:00:00]} h3 {[%emt 0:00:09]} 64. Bxh3 {[%emt 0:00:00]} Kxh3 {[%emt 0:00:04]} 65. a5 {[%emt 0:00:00]} f1=Q {[%emt 0:00:02]} 66. Ka7 {[%emt 0:00:00]} Qb5 {[%emt 0:00:19]} 67. a6 {[%emt 0:00:00]} Kg4 {[%emt 0:00:21] Weighted Error Value: White=0.61/Black=0.46} 0-1

[Event "2nd Late Dr Abul K C Chess-ch B 2022"]
[Site "Dhaka"]
[Date "2022.07.07"]
[Round "8.4"]
[White "Nurul, Islam Emon"]
[Black "Dewan, Riad"]
[Result "0-1"]
[ECO "D30"]
[WhiteElo "1805"]
[BlackElo "1970"]
[Annotator "TA"]
[PlyCount "29"]
[EventDate "2022.07.03"]
[EventCountry "BAN"]
[SourceTitle "playchess.com"]
[Source "ChessBase"]
[SourceQuality "1"]
[TimeControl "5400+30"]

{[%evp 9,29,-29,20,0,0,-8,0,-35,-6,-83,-76,-99,-99,-285,-265,-284,-219,-313,-313,-302,-277,-502]} 1. d4 {[%emt 0:00:04]} d5 {[%emt 0:00:39]} 2. Nf3 {[%emt 0:00:09]} Nf6 {[%emt 0:00:04]} 3. c4 {[%emt 0:00:09]} e6 {[%emt 0:00:11]} 4. Bg5 {[%emt 0:00:57]} Nbd7 {[%emt 0:00:35]} 5. Qc2 {[%emt 0:01:29]} Be7 {[%emt 0:00:42]} (5... dxc4 6. Qxc4 c5) (5... dxc4 {is more appropriate.} 6. Qxc4 c5) 6. Nbd2 {[%emt 0:01:09] D30: Queen's Gambit Declined: Systems without Nc3.} O-O {[%emt 0:00:34]} 7. e3 {[%emt 0:00:07]} h6 {[%emt 0:02:33] [#]} 8. h4 $146 {[%emt 0:01:35][%cal Oa1c1] The position is equal.} ({Predecessor:} 8. Bh4 c5 9. dxc5 Nxc5 10. Be2 b6 11. O-O Bb7 12. Rac1 Nfe4 13. Bxe7 Qxe7 14. b4 Nxd2 15. Nxd2 {1-0 (54) Krysa,L (2531)-Schmakel,S (2435) Chess.com INT 2020}) 8... b6 {[%emt 0:00:42]} (8... hxg5 9. hxg5 g6 10. gxf6 Bxf6 11. Bd3) (8... hxg5 9. hxg5 g6 10. gxf6 Bxf6 11. O-O-O $16) 9. Bf4 {[%emt 0:00:30]} (9. cxd5 $11 exd5 10. Qc6) 9... Bb7 $17 {[%emt 0:01:45]} 10. Bd3 {[%emt 0:00:00]} c5 {[%emt 0:01:25]} 11. Ng5 $2 {[%emt 0:00:00]} cxd4 $19 {[%emt 0:03:28] [#] Strongly threatening ...e5.} (11... hxg5 12. hxg5 Re8 13. cxd5 (13. gxf6 Nxf6 14. cxd5 exd5 15. Nf3 cxd4) 13... exd5 14. Bh7+ Kf8 15. gxf6 Nxf6 16. Bd3) ({Not} 11... hxg5 12. hxg5 Re8 13. cxd5 (13. gxf6 Bxf6 14. Bd6 g6 $14) 13... exd5 14. Bh7+ (14. gxf6 Nxf6 15. Bh7+ Kf8 $16) 14... Kf8 15. gxf6 Nxf6 16. Bd3 $16) 12. exd4 {[%emt 0:00:00]} Rc8 {[%emt 0:02:45]} (12... hxg5 13. hxg5 Re8 14. gxf6 Bxf6 15. Bd6) ({Less strong is} 12... hxg5 13. hxg5 Re8 14. gxf6 Bxf6 15. O-O-O $11) 13. Rh3 {[%emt 0:00:00]} (13. Rd1 {was called for.}) 13... dxc4 {[%emt 0:02:48]} (13... hxg5 14. hxg5 Re8 15. O-O-O) ({Worse is} 13... hxg5 14. hxg5 Re8 15. O-O-O $11) 14. Bh7+ {[%emt 0:00:00]} Kh8 {[%emt 0:00:05]} 15. O-O-O $2 {[%emt 0:00:00] White got outplayed after the opening.  Weighted Error Value: White=0.62/Black=0.13 (very precise)} (15. Kf1) (15. Kf1) 0-1

[Event "2nd Late Dr Abul K C Chess-ch B 2022"]
[Site "Dhaka"]
[Date "2022.07.08"]
[Round "9.1"]
[White "Abdul, Momin"]
[Black "Tutul, Dhar"]
[Result "1/2-1/2"]
[ECO "C02"]
[WhiteElo "1915"]
[BlackElo "1945"]
[Annotator "RC"]
[PlyCount "79"]
[EventDate "2022.07.03"]
[EventCountry "BAN"]
[SourceTitle "playchess.com"]
[Source "ChessBase"]
[SourceQuality "1"]
[TimeControl "5400+30"]

1. e4 {[%emt 0:00:31]} e6 {[%emt 0:00:17]} 2. d4 {[%emt 0:00:02]} d5 {[%emt 0:00:06]} 3. e5 {[%emt 0:00:18]} c5 {[%emt 0:00:02]} 4. c3 {[%emt 0:00:01]} Nc6 {[%emt 0:00:09]} 5. Nf3 {[%emt 0:00:08]} Bd7 {[%emt 0:00:03]} 6. a3 {[%emt 0:00:20]} a6 {[%emt 0:02:43]} 7. Be2 {[%emt 0:01:10]} Nge7 {[%emt 0:00:46]} 8. O-O {[%emt 0:00:46]} Nf5 {[%emt 0:00:34]} 9. Bd3 {[%emt 0:01:18]} cxd4 {[%emt 0:03:00]} 10. Bxf5 {[%emt 0:00:05]} exf5 {[%emt 0:00:06]} 11. cxd4 {[%emt 0:00:14]} Be7 {[%emt 0:00:23]} 12. Nc3 {[%emt 0:01:07]} Be6 {[%emt 0:00:06]} 13. Na4 {[%emt 0:01:34]} O-O {[%emt 0:02:57]} 14. b4 {[%emt 0:01:27]} h6 {[%emt 0:04:55]} 15. Bb2 {[%emt 0:01:24]} Rc8 {[%emt 0:01:56]} 16. Nc5 {[%emt 0:00:30]} Qb6 {[%emt 0:02:25]} 17. Rb1 {[%emt 0:04:42]} Qa7 {[%emt 0:01:34]} 18. Qd3 {[%emt 0:01:15]} Nb8 {[%emt 0:04:32]} 19. Rbc1 {[%emt 0:01:22]} Nd7 {[%emt 0:02:03]} 20. Rc2 {[%emt 0:01:28]} b6 {[%emt 0:07:44]} 21. Nxe6 {[%emt 0:03:32]} fxe6 {[%emt 0:00:03]} 22. Rfc1 {[%emt 0:04:04]} Qb7 {[%emt 0:00:08]} 23. Rc3 {[%emt 0:02:15]} b5 {[%emt 0:02:38]} 24. Qc2 {[%emt 0:04:40]} Rc4 {[%emt 0:00:18]} 25. Nd2 {[%emt 0:01:05]} Rxc3 {[%emt 0:00:18]} 26. Qxc3 {[%emt 0:00:03]} Nb6 {[%emt 0:00:11]} 27. Qc6 {[%emt 0:03:26]} Qxc6 {[%emt 0:00:04]} 28. Rxc6 {[%emt 0:00:01]} Na4 {[%emt 0:00:10]} 29. Bc1 {[%emt 0:01:08]} Kf7 {[%emt 0:00:03]} 30. Nb3 {[%emt 0:01:19]} Ra8 {[%emt 0:00:41]} 31. Kf1 {[%emt 0:00:50]} Ra7 {[%emt 0:00:19]} 32. Ke2 {[%emt 0:02:25]} Bd8 {[%emt 0:07:15]} 33. Nc5 {[%emt 0:06:19]} Nxc5 {[%emt 0:01:52]} 34. dxc5 {[%emt 0:00:46]} Bc7 {[%emt 0:00:12]} 35. f4 {[%emt 0:00:13]} Ke7 {[%emt 0:00:09]} 36. h4 {[%emt 0:08:03]} Kd7 {[%emt 0:00:06]} 37. Rd6+ {[%emt 0:00:02]} Bxd6 {[%emt 0:00:04]} 38. exd6 {[%emt 0:00:02]} a5 {[%emt 0:00:14]} 39. Bd2 {[%emt 0:00:01]} axb4 {[%emt 0:00:23]} 40. Bxb4 {[%emt 0:50:34]} 1/2-1/2